bitfinex/quotes_BTCUSD_20240815
["timestamp","ask_amount","ask_price","bid_price","bid_amount"]
[1723763321246,0.0019053,57627.0,57626.0,1.92214654]
[1723763321888,0.0019053,57627.0,57626.0,1.57508154]
[1723763322528,0.0019053,57627.0,57626.0,1.92214654]
[1723763322728,0.0019053,57627.0,57626.0,1.57508154]
[1723763322936,0.0019053,57627.0,57626.0,1.92214654]
[1723763323163,0.0019053,57627.0,57626.0,1.92314654]
[1723763323362,0.0019053,57627.0,57626.0,1.92514654]
[1723763326861,0.0019053,57627.0,57626.0,1.92714654]
[1723763327518,0.0019053,57627.0,57626.0,1.97918384]
[1723763328322,0.0019053,57627.0,57626.0,2.04338384]
[1723763328475,0.0019053,57627.0,57626.0,1.99134654]
[1723763328878,0.0019053,57627.0,57626.0,1.98734654]
[1723763330398,0.0019053,57627.0,57626.0,1.64028154]
[1723763330772,0.0019053,57627.0,57626.0,1.98734654]
[1723763331993,0.0019053,57627.0,57626.0,1.64028154]
[1723763332582,0.0019053,57627.0,57626.0,1.98734654]
[1723763333461,0.0019053,57627.0,57626.0,1.64028154]
[1723763333906,0.0019053,57627.0,57626.0,1.98734654]
[1723763335454,0.0019053,57627.0,57626.0,1.64028154]
[1723763336206,0.0019053,57627.0,57626.0,1.05021654]
[1723763336464,0.1510053,57627.0,57626.0,1.05021654]
[1723763336714,0.1637583,57627.0,57626.0,1.05021654]
[1723763337286,1.10930943,57627.0,57626.0,0.011]
[1723763337515,1.97857963,57627.0,57626.0,0.011]
[1723763337765,2.3511541,57627.0,57626.0,1e-08]
[1723763337993,0.173557,57618.0,57614.0,0.173566]
[1723763338219,0.12776005,57616.0,57615.0,0.17155454]
[1723763338419,0.0860036,57616.0,57615.0,0.34511954]
[1723763338622,0.13786365,57616.0,57615.0,0.69225054]
[1723763338826,0.13786365,57616.0,57615.0,1.03938154]
[1723763338827,0.0860036,57616.0,57615.0,1.03938154]
[1723763339031,0.0860036,57616.0,57615.0,0.69225054]
[1723763339434,0.2595656,57616.0,57615.0,0.17155454]
[1723763339646,0.9538156,57616.0,57615.0,0.17155454]
[1723763339870,0.65855065,57616.0,57615.0,0.17155454]
[1723763340293,0.68455625,57616.0,57615.0,0.17155454]
[1723763340695,0.69044676,57616.0,57615.0,0.17155454]
[1723763341298,0.67149115,57616.0,57615.0,0.17255454]
[1723763341498,0.2655656,57616.0,57615.0,0.17255454]
[1723763341890,0.0980036,57616.0,57615.0,0.34711954]
[1723763342120,0.0980036,57616.0,57615.0,0.69425054]
[1723763342121,0.0221036,57616.0,57615.0,0.69425054]
[1723763342324,0.012,57616.0,57615.0,1.12715881]
[1723763342525,0.012,57616.0,57615.0,1.47428981]
[1723763342958,0.012,57616.0,57615.0,1.55598981]
[1723763343110,0.0009053,57627.0,57616.0,0.001]
[1723763343391,0.0009053,57627.0,57621.0,0.25733181]
[1723763343824,0.0009053,57627.0,57624.0,0.17155454]
[1723763344050,0.0009053,57627.0,57626.0,0.17155454]
[1723763344741,0.0079053,57627.0,57626.0,0.17500423]
[1723763344958,0.0069053,57627.0,57626.0,0.17500423]
[1723763345181,0.0069053,57627.0,57626.0,0.17155454]
[1723763345859,0.0069053,57627.0,57626.0,0.69215154]
[1723763346303,0.0760053,57627.0,57626.0,1.04021654]
[1723763346514,0.0760053,57627.0,57626.0,1.04221654]
[1723763347185,0.0760053,57627.0,57626.0,1.03921654]
[1723763347419,0.0780053,57627.0,57626.0,1.03921654]
[1723763347632,0.0770053,57627.0,57626.0,1.03921654]
[1723763348789,0.0019053,57627.0,57626.0,1.03921654]
[1723763349014,0.0019053,57627.0,57626.0,1.38628154]
[1723763349237,0.0009053,57627.0,57626.0,1.46298154]
[1723763349455,0.0009053,57627.0,57626.0,1.48598154]
[1723763349683,0.0009053,57627.0,57626.0,1.48698154]
[1723763349961,0.0009053,57627.0,57626.0,1.04021654]
[1723763350183,0.0009053,57627.0,57626.0,1.04221654]
[1723763350411,0.0009053,57627.0,57626.0,0.69515154]
[1723763350860,0.0774053,57627.0,57626.0,0.34508654]
[1723763351093,0.15146576,57627.0,57626.0,0.17155454]
[1723763351328,0.15346576,57627.0,57626.0,0.17155454]
[1723763352201,0.01386576,57627.0,57626.0,0.34508654]
[1723763352453,0.01386576,57627.0,57626.0,0.69215154]
[1723763352898,0.01386576,57627.0,57626.0,1.03921654]
[1723763353110,0.0039053,57627.0,57626.0,1.03921654]
[1723763355517,0.0009053,57627.0,57626.0,1.03921654]
[1723763355735,0.0009053,57627.0,57626.0,1.04221654]
[1723763358349,0.0009053,57627.0,57626.0,1.38928154]
[1723763360745,0.0009053,57627.0,57626.0,2.32871154]
[1723763360912,0.0009053,57627.0,57626.0,2.00464654]
[1723763362116,0.0009053,57627.0,57626.0,2.00164654]
[1723763362441,0.0009053,57627.0,57626.0,2.00864261]
[1723763362709,0.0009053,57627.0,57626.0,2.01164261]
[1723763362938,0.0019053,57627.0,57626.0,2.02146361]
[1723763363099,0.0029053,57627.0,57626.0,2.02946361]
[1723763363471,0.0029053,57627.0,57626.0,2.37652861]
[1723763369752,0.00266608,57627.0,57626.0,2.37652861]
[1723763371523,0.00266608,57627.0,57626.0,2.02946361]
[1723763378990,0.00266608,57627.0,57626.0,2.37652861]
[1723763382178,0.91344962,57627.0,57626.0,0.017821]
[1723763382391,0.92468535,57627.0,57626.0,0.017821]
[1723763382600,0.92468535,57627.0,57615.0,0.000821]
[1723763382601,0.584587,57616.0,57615.0,0.000821]
[1723763382819,1.05999844,57616.0,57615.0,0.17237554]
[1723763383022,1.09497226,57616.0,57615.0,0.17237554]
[1723763383227,1.0172926,57616.0,57615.0,0.17237554]
[1723763383426,1.06904794,57616.0,57615.0,0.17237554]
[1723763383701,1.06904731,57616.0,57615.0,0.17237554]
[1723763384145,1.06904731,57616.0,57615.0,0.000821]
[1723763384337,1.3644176,57616.0,57615.0,0.000821]
[1723763384486,1.41616348,57616.0,57615.0,0.000821]
[1723763384689,1.40708288,57616.0,57615.0,0.000821]
[1723763385099,1.44701666,57616.0,57615.0,0.000821]
[1723763385303,1.42106706,57616.0,57615.0,0.000821]
[1723763385528,1.40706706,57616.0,57615.0,0.000821]
[1723763385840,1.369337,57616.0,57615.0,0.000821]
[1723763386014,0.1294661,57622.0,57615.0,0.000821]
[1723763386015,0.00066608,57627.0,57626.0,0.173532]
[1723763386215,0.00066608,57627.0,57626.0,1.33909816]
[1723763386415,0.00066608,57627.0,57626.0,2.08652685]
[1723763386672,0.00066608,57627.0,57626.0,2.27434523]
[1723763387103,0.00066608,57627.0,57626.0,2.29734523]
[1723763387283,0.01266608,57627.0,57626.0,2.40521299]
[1723763387780,0.01266608,57627.0,57626.0,2.75127799]
[1723763387781,0.00066608,57627.0,57626.0,2.75127799]
[1723763388062,0.00066608,57627.0,57626.0,2.6999793]
[1723763388267,0.01366608,57627.0,57626.0,2.7009793]
[1723763388883,0.00066608,57627.0,57626.0,2.6999793]
[1723763389094,0.00266608,57627.0,57626.0,2.7069793]
[1723763389297,0.00166608,57627.0,57626.0,2.7059793]
[1723763389501,0.00166608,57627.0,57626.0,2.75727799]
[1723763389716,0.00166608,57627.0,57626.0,2.75227799]
[1723763389933,0.00266608,57627.0,57626.0,2.75827799]
[1723763390175,0.00166608,57627.0,57626.0,2.75727799]
[1723763390586,0.00266608,57627.0,57626.0,2.75827799]
[1723763390793,0.00166608,57627.0,57626.0,2.75727799]
[1723763391411,0.00066608,57627.0,57626.0,2.75127799]
[1723763391820,0.00066608,57627.0,57626.0,2.76527799]
[1723763392231,0.00166608,57627.0,57626.0,2.77427799]
[1723763392660,0.00166608,57627.0,57626.0,2.84375199]
[1723763392868,0.00166608,57627.0,57626.0,2.82975199]
[1723763393076,0.00166608,57627.0,57626.0,2.83475199]
[1723763393077,0.00066608,57627.0,57626.0,2.83475199]
[1723763393278,0.00166608,57627.0,57626.0,2.84375199]
[1723763393704,0.00166608,57627.0,57626.0,3.49081699]
[1723763395537,0.00066608,57627.0,57626.0,3.48181699]
[1723763395771,0.00066608,57627.0,57626.0,3.47581699]
[1723763395997,0.00904201,57650.0,57648.0,1.989231]
[1723763396235,0.00904201,57650.0,57648.0,3.75249581]
[1723763396456,0.00904201,57650.0,57648.0,3.95936357]
[1723763396682,0.00904201,57650.0,57648.0,3.89936357]
[1723763397149,0.00904201,57650.0,57648.0,3.95066226]
[1723763397582,0.01004201,57649.0,57648.0,3.95866226]
[1723763398014,0.01004201,57649.0,57648.0,4.01444388]
[1723763399112,0.01004201,57649.0,57648.0,4.00644388]
[1723763399113,0.00904201,57649.0,57648.0,4.00644388]
[1723763399372,0.00904201,57649.0,57648.0,4.02044388]
[1723763399603,0.00904201,57649.0,57648.0,4.03444388]
[1723763399872,1e-08,57649.0,57648.0,4.03444388]
[1723763400126,0.00090311,57655.0,57648.0,4.03444388]
[1723763400127,0.00090311,57655.0,57653.0,0.607754]
[1723763400346,0.00090311,57655.0,57653.0,2.31001754]
[1723763400577,0.00090311,57655.0,57653.0,2.79947292]
[1723763401553,0.00090311,57655.0,57653.0,2.7436913]
[1723763401792,0.00090311,57655.0,57653.0,2.69260516]
[1723763401969,0.00090311,57655.0,57653.0,2.63682354]
[1723763402199,0.00090311,57655.0,57653.0,2.65082354]
[1723763402832,1.1e-07,57654.0,57653.0,3.05212223]
[1723763403047,1.1e-07,57654.0,57653.0,3.12802223]
[1723763403297,0.00090421,57661.0,57653.0,3.12802223]
[1723763403298,4.2e-07,57661.0,57660.0,0.42003]
[1723763403533,4.2e-07,57661.0,57660.0,2.43098181]
[1723763403749,4.2e-07,57661.0,57660.0,3.5228605]
[1723763403971,4.2e-07,57661.0,57660.0,3.8697205]
[1723763404616,4.2e-07,57661.0,57660.0,3.8837205]
[1723763405309,4.2e-07,57661.0,57660.0,3.93950212]
[1723763405510,4.2e-07,57661.0,57660.0,3.03242181]
[1723763405923,4.2e-07,57661.0,57660.0,3.0837205]
[1723763406132,4.2e-07,57661.0,57660.0,3.5637205]
[1723763406339,4.2e-07,57661.0,57660.0,3.42664454]
[1723763406547,4.2e-07,57661.0,57660.0,2.96064454]
[1723763407011,4.2e-07,57661.0,57660.0,2.93764454]
[1723763407219,4.2e-07,57661.0,57660.0,2.79874454]
[1723763407423,0.08200042,57661.0,57660.0,1.76042454]
[1723763407638,0.08200042,57661.0,57660.0,1.41356454]
[1723763408266,0.08200042,57661.0,57660.0,1.39956454]
[1723763408694,0.08200042,57661.0,57660.0,1.41356454]
[1723763409106,0.08200042,57661.0,57660.0,1.39956454]
[1723763409315,0.08200042,57661.0,57660.0,1.51356454]
[1723763409316,0.08300042,57661.0,57660.0,1.51356454]
[1723763409530,0.08300042,57661.0,57660.0,1.16670454]
[1723763409736,0.14460042,57661.0,57660.0,0.19955454]
[1723763410155,0.1435,57660.0,57657.0,0.346875]
[1723763410365,0.1435,57660.0,57659.0,0.173433]
[1723763410570,0.1435,57660.0,57659.0,0.69185354]
[1723763410775,0.1435,57660.0,57659.0,1.38558554]
[1723763411839,0.1435,57660.0,57659.0,1.48558554]
[1723763412056,0.1435,57660.0,57659.0,1.83245154]
[1723763412489,0.1435,57660.0,57659.0,1.83645154]
[1723763412696,0.005,57660.0,57659.0,1.83945154]
[1723763412919,4.2e-07,57661.0,57660.0,1.21401]
[1723763413135,4.2e-07,57661.0,57660.0,1.73242454]
[1723763413396,4.2e-07,57661.0,57660.0,1.83242454]
[1723763413600,4.2e-07,57661.0,57660.0,2.07702454]
[1723763414218,4.2e-07,57661.0,57660.0,2.13812454]
[1723763414446,4.2e-07,57661.0,57660.0,2.28386523]
[1723763414653,4.2e-07,57661.0,57660.0,2.36656523]
[1723763414859,4.2e-07,57661.0,57660.0,2.81656523]
[1723763415068,4.2e-07,57661.0,57660.0,2.82056523]
[1723763415483,4.2e-07,57661.0,57660.0,2.81656523]
[1723763415689,4.2e-07,57661.0,57660.0,2.83256523]
[1723763416068,4.2e-07,57661.0,57660.0,2.83056523]
[1723763416275,4.2e-07,57661.0,57660.0,2.84456523]
[1723763417528,4.2e-07,57661.0,57660.0,3.53828523]
[1723763419017,0.00110421,57679.0,57678.0,2.151736]
[1723763419264,0.00110421,57679.0,57678.0,2.44829054]
[1723763420238,0.00110421,57679.0,57678.0,2.44929054]
[1723763420477,0.00210421,57679.0,57678.0,2.44929054]
[1723763420710,0.00110421,57679.0,57678.0,2.44929054]
[1723763420972,0.00110421,57679.0,57678.0,2.46329054]
[1723763421441,0.00110421,57679.0,57678.0,2.81004254]
[1723763421679,0.00110421,57679.0,57678.0,2.47169166]
[1723763421914,0.00110421,57679.0,57678.0,2.48669166]
[1723763422386,0.00110421,57679.0,57678.0,2.47269166]
[1723763422602,0.00110421,57679.0,57678.0,2.48669166]
[1723763423227,0.00110421,57679.0,57678.0,2.47269166]
[1723763423902,0.00110421,57679.0,57678.0,2.45869166]
[1723763424236,0.00110421,57679.0,57678.0,2.47269166]
[1723763425474,0.00110421,57679.0,57678.0,2.52399035]
[1723763425673,0.00110421,57679.0,57678.0,2.53799035]
[1723763426498,0.00110421,57679.0,57678.0,2.52399035]
[1723763426746,0.00110421,57679.0,57678.0,2.88474235]
[1723763426947,0.00110421,57679.0,57678.0,2.87074235]
[1723763428111,0.00110421,57679.0,57678.0,2.85674235]
[1723763428310,0.00110421,57679.0,57678.0,2.88474235]
[1723763428773,0.00110421,57679.0,57678.0,2.87074235]
[1723763429124,0.00110421,57679.0,57678.0,2.88474235]
[1723763429525,0.00110421,57679.0,57678.0,3.13474235]
[1723763430431,0.000822,57694.0,57684.0,2.258654]
[1723763430606,0.000822,57694.0,57684.0,3.4871845]
[1723763431705,0.000822,57694.0,57684.0,3.5011845]
[1723763433435,0.000822,57694.0,57684.0,3.5151845]
[1723763433715,0.000822,57694.0,57684.0,3.52554744]
[1723763434922,1e-06,57685.0,57684.0,3.52554744]
[1723763439236,1e-06,57685.0,57684.0,3.82554744]
[1723763439474,0.000822,57694.0,57693.0,2.296041]
[1723763439718,0.000822,57694.0,57693.0,2.59059554]
[1723763439958,0.000822,57694.0,57693.0,3.12059554]
[1723763440188,0.000822,57694.0,57693.0,3.51855623]
[1723763440896,1e-06,57694.0,57693.0,3.52355623]
[1723763441134,0.009031,57707.0,57698.0,2.338808]
[1723763441379,0.009031,57707.0,57698.0,3.17336254]
[1723763442528,0.009031,57707.0,57698.0,2.64736254]
[1723763443601,0.009031,57707.0,57698.0,2.66136254]
[1723763444299,0.009031,57707.0,57698.0,2.57966254]
[1723763444536,0.009031,57707.0,57698.0,2.57866254]
[1723763444765,0.0788,57702.0,57698.0,2.58066254]
[1723763445267,0.065,57701.0,57698.0,2.20603054]
[1723763445514,0.065,57701.0,57698.0,2.20703054]
[1723763445751,0.065,57701.0,57698.0,2.20903054]
[1723763446210,0.065,57701.0,57698.0,1.41276654]
[1723763446441,0.1447,57699.0,57698.0,1.41276654]
[1723763446665,0.1447,57699.0,57698.0,1.06613454]
[1723763446928,0.1447,57699.0,57698.0,0.37287054]
[1723763447147,0.15309936,57699.0,57698.0,0.35887054]
[1723763447360,0.15309936,57699.0,57698.0,0.69150254]
[1723763447575,0.15309936,57699.0,57698.0,0.69850254]
[1723763447787,0.15400247,57699.0,57698.0,0.17855454]
[1723763447997,0.15400247,57699.0,57698.0,0.17155454]
[1723763448217,0.15400247,57699.0,57698.0,0.35687054]
[1723763448433,0.15400247,57699.0,57698.0,1.04513454]
[1723763448846,0.14560311,57699.0,57698.0,1.03813454]
[1723763449089,0.14560311,57699.0,57698.0,0.17255454]
[1723763449300,0.14560311,57699.0,57698.0,0.34587054]
[1723763449512,0.15398008,57699.0,57698.0,0.34587054]
[1723763449727,0.15398008,57699.0,57698.0,0.17255454]
[1723763449938,0.32729308,57699.0,57698.0,0.006]
[1723763450149,0.32729308,57699.0,57698.0,0.001]
[1723763450358,0.1396,57698.0,57695.0,0.173323]
[1723763450562,0.1396,57698.0,57696.0,0.34487554]
[1723763450781,0.14430184,57697.0,57696.0,0.34487554]
[1723763451009,0.14430184,57697.0,57696.0,1.03816354]
[1723763451216,0.14430184,57697.0,57696.0,0.69151954]
[1723763451427,0.1436,57697.0,57696.0,1.03816354]
[1723763452522,0.1436,57697.0,57696.0,1.38480754]
[1723763453162,0.1436,57697.0,57696.0,1.38580754]
[1723763454021,0.1436,57697.0,57696.0,1.38880754]
[1723763454923,0.1436,57697.0,57696.0,1.04216354]
[1723763457474,0.1436,57697.0,57696.0,1.38880754]
[1723763458409,0.00110311,57699.0,57698.0,0.86658]
[1723763458414,0.00110311,57699.0,57698.0,1.213212]
[1723763458667,0.00110311,57699.0,57698.0,1.38476654]
[1723763458913,0.08400311,57699.0,57698.0,1.48476654]
[1723763459153,0.14880311,57699.0,57698.0,1.48476654]
[1723763459704,0.14880311,57699.0,57698.0,1.03813454]
[1723763459945,0.14980311,57699.0,57698.0,0.17255454]
[1723763460184,0.32311611,57699.0,57698.0,0.001]
[1723763460427,1.01636811,57699.0,57698.0,0.001]
[1723763460672,0.33900296,57699.0,57698.0,0.001]
[1723763460933,0.68562896,57699.0,57698.0,0.001]
[1723763461202,1.03225496,57699.0,57698.0,0.001]
[1723763461659,0.68562896,57699.0,57698.0,0.001]
[1723763463069,0.33900296,57699.0,57698.0,0.001]
[1723763463283,0.68562896,57699.0,57698.0,0.001]
[1723763463718,1.03225496,57699.0,57698.0,0.001]
[1723763464395,0.73743117,57699.0,57698.0,0.001]
[1723763464682,0.68562896,57699.0,57698.0,0.001]
[1723763464913,0.24344177,57699.0,57698.0,0.001]
[1723763465138,0.21752277,57699.0,57698.0,0.34587054]
[1723763465384,0.21752277,57699.0,57698.0,0.69250254]
[1723763466076,0.16568996,57699.0,57698.0,0.69250254]
[1723763466281,0.21752277,57699.0,57698.0,0.69250254]
[1723763466501,0.21752277,57699.0,57698.0,0.001]
[1723763466711,0.39431129,57699.0,57698.0,0.001]
[1723763466922,0.68910448,57699.0,57698.0,0.001]
[1723763467336,0.74093152,57699.0,57698.0,0.001]
[1723763467540,1.08755752,57699.0,57698.0,0.001]
[1723763467758,1.03573048,57699.0,57698.0,0.001]
[1723763467969,1.52374268,57699.0,57698.0,0.001]
[1723763468185,1.52374268,57699.0,57694.0,0.000821]
[1723763468186,0.663475,57695.0,57694.0,0.000821]
[1723763468419,1.08786191,57695.0,57694.0,0.000821]
[1723763468639,1.84541224,57695.0,57694.0,0.000821]
[1723763468885,1.91331756,57695.0,57694.0,0.000821]
[1723763469127,1.04846302,57695.0,57694.0,0.000821]
[1723763469340,0.83139027,57695.0,57694.0,0.000821]
[1723763469555,0.22183647,57695.0,57694.0,0.17237554]
[1723763470076,0.36925055,57695.0,57694.0,0.001821]
[1723763470310,0.71590055,57695.0,57694.0,0.001821]
[1723763470525,0.71590055,57695.0,57694.0,0.000821]
[1723763470734,0.71790055,57695.0,57694.0,0.002821]
[1723763471158,0.71590055,57695.0,57694.0,0.001821]
[1723763471568,0.71590055,57695.0,57694.0,0.17337554]
[1723763471569,0.19592555,57695.0,57694.0,0.17337554]
[1723763471781,0.14411044,57695.0,57694.0,0.17337554]
[1723763471993,0.14411044,57695.0,57694.0,0.34670354]
[1723763472422,0.14611044,57695.0,57694.0,0.34770354]
[1723763473042,0.14611044,57695.0,57694.0,0.17437554]
[1723763473277,0.14611044,57695.0,57694.0,0.002821]
[1723763473496,1.28489455,57695.0,57694.0,0.002821]
[1723763473725,2.01594809,57695.0,57694.0,0.002821]
[1723763473935,1.51986353,57695.0,57694.0,0.002821]
[1723763474144,1.55760285,57695.0,57694.0,0.002821]
[1723763474353,1.01273544,57695.0,57694.0,0.002821]
[1723763474560,1.06451828,57695.0,57694.0,0.002821]
[1723763474785,1.09041213,57695.0,57694.0,0.002821]
[1723763475446,1.10564787,57695.0,57694.0,0.002821]
[1723763475663,1.27429372,57695.0,57694.0,0.002821]
[1723763475879,1.19661703,57695.0,57694.0,0.002821]
[1723763476331,1.10562758,57695.0,57694.0,0.002821]
[1723763477039,0.75897758,57695.0,57694.0,0.002821]
[1723763477559,0.68132118,57695.0,57694.0,0.002821]
[1723763478255,0.73308667,57695.0,57694.0,0.002821]
[1723763479172,1.07973667,57695.0,57694.0,0.002821]
[1723763480150,0.68132118,57695.0,57694.0,0.002821]
[1723763481710,1.02797118,57695.0,57694.0,0.002821]
[1723763481977,0.73308667,57695.0,57694.0,0.002821]
[1723763482461,1.07973667,57695.0,57694.0,0.002821]
[1723763483177,0.173342,57690.0,57685.0,0.173354]
[1723763483407,0.173352,57686.0,57685.0,0.17155454]
[1723763483635,0.173349,57687.0,57685.0,0.17155454]
[1723763484374,0.520056,57686.0,57685.0,0.17155454]
[1723763484601,0.520056,57686.0,57678.0,0.000821]
[1723763484602,0.173368,57681.0,57678.0,0.000821]
[1723763484829,0.00347552,57680.0,57679.0,0.17155454]
[1723763485127,0.66361,57680.0,57679.0,0.17155454]
[1723763486000,0.1435,57680.0,57679.0,0.17155454]
[1723763486206,0.0775,57680.0,57679.0,0.17355454]
[1723763486594,0.0775,57680.0,57679.0,0.17155454]
[1723763486826,0.0775,57680.0,57679.0,0.17355454]
[1723763487042,0.0775,57680.0,57679.0,0.17455454]
[1723763487256,0.078067,57680.0,57679.0,0.17455454]
[1723763488132,0.000567,57680.0,57679.0,0.17455454]
[1723763489018,0.000567,57680.0,57679.0,1.10441954]
[1723763489251,0.000567,57680.0,57679.0,1.45116554]
[1723763489479,0.12673265,57692.0,57689.0,0.173342]
[1723763489480,0.075,57692.0,57689.0,0.173342]
[1723763489714,0.075,57692.0,57690.0,0.34489354]
[1723763489939,0.075,57692.0,57690.0,0.17155454]
[1723763490435,0.01248265,57691.0,57690.0,0.17155454]
[1723763491811,0.01248265,57691.0,57690.0,0.17255454]
[1723763492051,0.01248265,57691.0,57690.0,0.69257454]
[1723763492265,0.01248265,57691.0,57690.0,1.09945454]
[1723763492511,0.0642153,57691.0,57690.0,1.09945454]
[1723763492703,0.01248265,57691.0,57690.0,1.09945454]
[1723763492969,0.009,57691.0,57690.0,1.10045454]
[1723763493206,0.009,57691.0,57690.0,1.09945454]
[1723763493443,0.017,57691.0,57690.0,1.10045454]
[1723763493904,0.0308392,57691.0,57690.0,1.10045454]
[1723763494137,0.017,57691.0,57690.0,1.10045454]
[1723763494617,0.017,57691.0,57690.0,1.44713454]
[1723763495072,0.017,57691.0,57690.0,1.10045454]
[1723763497445,0.03074652,57691.0,57690.0,0.69357454]
[1723763497655,0.28258352,57691.0,57690.0,0.17355454]
[1723763497869,0.33042379,57691.0,57690.0,0.17355454]
[1723763498075,0.01858679,57691.0,57690.0,0.34689454]
[1723763498493,0.01858679,57691.0,57690.0,0.69357454]
[1723763498669,0.01858679,57691.0,57690.0,1.04025454]
[1723763499555,0.01858679,57691.0,57690.0,0.34689454]
[1723763499767,0.09408679,57691.0,57690.0,0.17355454]
[1723763500188,0.01858679,57691.0,57690.0,0.17355454]
[1723763501223,0.19192379,57691.0,57690.0,0.17355454]
[1723763501633,0.19192379,57691.0,57690.0,0.002]
[1723763501634,0.53859779,57691.0,57690.0,0.002]
[1723763502885,0.01923818,57691.0,57690.0,0.42809454]
[1723763503091,0.02018755,57691.0,57690.0,0.42809454]
[1723763503523,0.02018755,57691.0,57690.0,0.17355454]
[1723763503754,0.10228755,57691.0,57690.0,0.002]
[1723763503956,0.62577407,57691.0,57690.0,0.002]
[1723763504378,0.67765979,57691.0,57690.0,0.002]
[1723763504795,0.07207327,57691.0,57690.0,0.17355454]
[1723763505002,0.24541027,57691.0,57690.0,0.17355454]
[1723763505213,0.07207327,57691.0,57690.0,0.17355454]
[1723763505425,0.08371249,57691.0,57690.0,0.17355454]
[1723763505631,0.25704949,57691.0,57690.0,0.17355454]
[1723763506056,0.08371249,57691.0,57690.0,0.34689454]
[1723763506479,0.08371249,57691.0,57690.0,0.17355454]
[1723763506706,0.20516377,57691.0,57690.0,0.17355454]
[1723763508239,0.20516377,57691.0,57690.0,0.17437554]
[1723763508448,0.28299236,57691.0,57690.0,0.17437554]
[1723763511259,0.10965536,57691.0,57690.0,0.17437554]
[1723763512125,0.10972219,57691.0,57690.0,0.17437554]
[1723763513193,0.28305919,57691.0,57690.0,0.17437554]
[1723763513404,0.28307257,57691.0,57690.0,0.17437554]
[1723763513611,0.10973557,57691.0,57690.0,0.17437554]
[1723763514035,0.10973557,57691.0,57690.0,0.34771554]
[1723763514260,0.03182677,57691.0,57690.0,0.42511554]
[1723763514471,0.10973393,57691.0,57690.0,0.42511554]
[1723763514691,0.09490716,57691.0,57690.0,0.42511554]
[1723763514920,0.10971375,57691.0,57690.0,0.42511554]
[1723763515143,0.10971375,57691.0,57690.0,0.77179554]
[1723763515144,0.03180659,57691.0,57690.0,0.77179554]
[1723763515896,0.03180659,57691.0,57690.0,1.11847554]
[1723763516322,0.017,57691.0,57690.0,1.11847554]
[1723763516524,0.03180659,57691.0,57690.0,1.11847554]
[1723763516951,0.03180659,57691.0,57690.0,0.77179554]
[1723763518023,0.03180659,57691.0,57690.0,0.17437554]
[1723763518024,0.25707423,57691.0,57690.0,0.17437554]
[1723763518260,0.30900488,57691.0,57690.0,0.17437554]
[1723763518468,0.20514359,57691.0,57690.0,0.17437554]
[1723763518678,0.58949026,57691.0,57690.0,0.17437554]
[1723763519324,0.71376685,57691.0,57676.0,0.346761]
[1723763519566,0.71376685,57691.0,57680.0,0.17155454]
[1723763519567,0.25128253,57681.0,57680.0,0.17155454]
[1723763519784,0.90445067,57681.0,57680.0,0.17155454]
[1723763519998,1.03748647,57681.0,57680.0,0.17155454]
[1723763520428,1.04913103,57681.0,57680.0,0.17155454]
[1723763520887,1.04913875,57681.0,57680.0,0.17155454]
[1723763521102,1.26601081,57681.0,57680.0,0.17155454]
[1723763521520,1.45227898,57681.0,57680.0,0.17155454]
[1723763521774,1.34211081,57681.0,57680.0,0.17155454]
[1723763522943,1.35012803,57681.0,57680.0,0.17255454]
[1723763524157,0.88068136,57681.0,57680.0,0.17155454]
[1723763524419,1.27214384,57681.0,57680.0,0.17255454]
[1723763524682,1.41092504,57681.0,57680.0,0.17355454]
[1723763524944,1.40392504,57681.0,57680.0,0.17155454]
[1723763525190,1.42392504,57681.0,57680.0,0.17355454]
[1723763525643,1.41492504,57681.0,57680.0,0.17255454]
[1723763525902,1.39492504,57681.0,57680.0,0.17155454]
[1723763526142,1.39492504,57681.0,57679.0,0.000821]
[1723763526143,0.86685,57680.0,57679.0,0.000821]
[1723763526364,1.70165205,57680.0,57679.0,0.000821]
[1723763526573,1.71508184,57680.0,57679.0,0.000821]
[1723763527265,1.36834184,57680.0,57679.0,0.000821]
[1723763527724,1.72508184,57680.0,57679.0,0.001821]
[1723763527957,1.70307366,57680.0,57679.0,0.001821]
[1723763528429,1.85881865,57680.0,57679.0,0.001821]
[1723763528665,1.85881865,57680.0,57679.0,0.002821]
[1723763528666,1.71112396,57680.0,57679.0,0.002821]
[1723763528897,2.5361185,57680.0,57679.0,0.002821]
[1723763529122,2.69481319,57680.0,57679.0,0.002821]
[1723763529360,3.03643914,57680.0,57679.0,0.002821]
[1723763529603,2.34499971,57680.0,57679.0,0.002821]
[1723763530273,2.34799971,57680.0,57679.0,0.002821]
[1723763530485,2.34999971,57680.0,57679.0,0.002821]
[1723763530707,2.34999971,57680.0,57663.0,0.1]
[1723763530708,0.001,57677.0,57663.0,0.1]
[1723763530976,0.001,57677.0,57660.0,0.000821]
[1723763530977,0.173427,57661.0,57660.0,0.000821]
[1723763531211,0.87061052,57661.0,57660.0,0.000821]
[1723763531444,1.68417142,57661.0,57660.0,0.000821]
[1723763531674,1.85772596,57661.0,57660.0,0.000821]
[1723763531899,1.50439644,57661.0,57660.0,0.000821]
[1723763532111,1.01148791,57661.0,57660.0,0.000821]
[1723763532328,0.61507803,57661.0,57660.0,0.001821]
[1723763532572,0.9360026,57661.0,57660.0,0.001821]
[1723763532796,0.88422912,57661.0,57660.0,0.001821]
[1723763533019,0.88422912,57661.0,57660.0,0.002821]
[1723763533020,0.95000369,57661.0,57660.0,0.002821]
[1723763533247,0.60314969,57661.0,57660.0,0.002821]
[1723763533715,0.95000369,57661.0,57660.0,0.002821]
[1723763534180,0.58914969,57661.0,57660.0,0.001821]
[1723763534431,0.173442,57657.0,57654.0,0.0761]
[1723763534672,0.173442,57657.0,57655.0,0.17155454]
[1723763534934,0.00306071,57656.0,57655.0,0.17155454]
[1723763535169,0.00306071,57656.0,57655.0,0.23415454]
[1723763535415,0.00306071,57656.0,57655.0,0.75448954]
[1723763535416,0.01323145,57656.0,57655.0,0.75448954]
[1723763535646,0.01323145,57656.0,57655.0,1.53076954]
[1723763535883,0.019,57657.0,57656.0,0.520326]
[1723763536114,0.008,57657.0,57656.0,1.03876454]
[1723763537271,0.173415,57665.0,57660.0,0.173428]
[1723763537512,0.173415,57665.0,57659.0,0.346865]
[1723763537513,0.520233,57667.0,57662.0,0.173423]
[1723763537738,0.173416,57665.0,57662.0,0.25185454]
[1723763538438,0.0031016,57664.0,57662.0,0.42527854]
[1723763538666,0.0031016,57664.0,57662.0,0.25185454]
[1723763538886,0.0031016,57664.0,57662.0,0.42527754]
[1723763539342,0.0031016,57664.0,57662.0,0.25185454]
[1723763540536,0.0031016,57664.0,57663.0,0.23735454]
[1723763540778,0.0031016,57664.0,57663.0,0.31355454]
[1723763541021,0.4681,57674.0,57664.0,0.0762]